Cogmind - Beta 14 @@@ ROGUE MODE // 2024.09.21 @ 20:46:10 Player: Duduxx Result: Destroyed self with Rocket Launcher Performance ------------- Evolutions (0) 0 Regions Visited (2) 400 Robots Destroyed (17) 85 Value Destroyed (396) 396 Prototype IDs (0) 0 Alien Tech Used (0) 0 Bonus (0) 0 TOTAL SCORE: 881 Bonus ------- None Cogmind --------- Core Integrity 0/250 Matter 154/300 Energy 95/100 System Corruption 0% Temperature Cool (9) Movement Core (400) Ox7 Location -10/Mines Parts ------- > --- POWER (1) -------- (None) > --- PROPULSION (2) --- (None) > --- UTILITY (2) ------ Large Storage Unit Improved Targeting Computer > --- WEAPON (2) ------- Rocket Launcher > --- INVENTORY (15) --- Improved Heat Sink Medium Storage Unit Weight Redist. System Weight Redist. System Sensor Array Signal Interpreter Improved Targeting Computer Improved Targeting Computer Improved Targeting Computer Rocket Launcher Peak State ------------ > --- POWER ------------ Light Nuclear Core > --- PROPULSION ------- Wheel Flight Unit > --- UTILITY ---------- Large Storage Unit Improved Targeting Computer > --- WEAPON ----------- Light Assault Rifle Light Assault Rifle > --- INVENTORY -------- Improved Heat Sink Medium Storage Unit Weight Redist. System Weight Redist. System Sensor Array Signal Interpreter Improved Targeting Computer Improved Targeting Computer Improved Targeting Computer Rocket Launcher Rocket Launcher [Rating: 12] Favorites ----------- Power Ion Engine Engine Ion Engine Power Core Light Nuclear Core Propulsion Light Treads Treads Light Treads Wheel Wheel Flight Unit Flight Unit Utility Improved Targeting Computer Storage Large Storage Unit Processor Improved Targeting Computer Weapon Light Assault Rifle Energy Gun Small Laser Ballistic Gun Light Assault Rifle Launcher Rocket Launcher Build | -11 -10 -10 ------- Run | Yrd Mat Min Slots Evolved . | . . . Power . | . . . Propulsion . | . . . Utility . | . . . Weapon . | . . . Parts Attached 18 | 6 6 6 Power 2 | 1 . 1 Engine 1 | 1 . . Core 1 | . . 1 Reactor . | . . . Propulsion 5 | 2 . 3 Treads 2 | 2 . . Leg . | . . . Wheel 1 | . . 1 Hover . | . . . Flight 2 | . . 2 Utility 7 | 1 6 . Device . | . . . Storage 6 | 1 5 . Processor 1 | . 1 . Hackware . | . . . Protection . | . . . Artifact . | . . . Weapon 4 | 2 . 2 Energy Gun 1 | 1 . . Energy Cannon . | . . . Ballistic Gun 2 | 1 . 1 Ballistic Cannon . | . . . Launcher 1 | . . 1 Special Weapon . | . . . Impact Weapon . | . . . Slashing Weapon . | . . . Piercing Weapon . | . . . Special Melee Weapon . | . . . Unidentified Prototypes . | . . . Parts Lost 9 | . 1 8 Power 2 | . . 2 Propulsion 4 | . . 4 Utility . | . . . Weapon 3 | . 1 2 Highest Loss Streak 5 | . 1 5 To Critical Strikes . | . . . Average Slot Usage (%) 91 | . 99 77 Engine 9 | . 14 . Core 3 | . . 11 Treads 18 | . 28 . Wheel 1 | . . 3 Flight 6 | . . 18 Storage 14 | . 14 14 Processor 13 | . 13 14 Energy Gun 8 | . 13 . Ballistic Gun 14 | . 14 14 Peak Build Rating 12 | 6 10 12 Average Rating 9 | 4 9 10 On Entrance 5 | . 6 9 Naked Turns . | . . . Heaviest Build 87 | 12 87 27 Greatest Support 40 | 40 40 10 Greatest Overweight (x) 8 | 1 2 8 Average Overweight (x) . | . . 2 Largest Inventory Capacity 25 | 8 25 15 Average Capacity 13 | 7 13 15 Most Carried 13 | . 13 13 Average Carried 9 | . 8 11 Final Capacity 15 | 8 15 15 Final Carried 12 | . 12 10 Class Distribution -------------------- 97% | Mutant Dominant Class ---------------- Mutant | -10/Materials Mutant | -10/Mines Resources | -11 -10 -10 ----------- Run | Yrd Mat Min Matter Collected 302 | 60 161 81 Remotely . | . . . Salvage Created 488 | . 349 139 Parts 37 | . 26 11 Haulers Intercepted 1 | . 1 . Recyclers Shooed 3 | . 2 1 Parts Field Recycled . | . . . Retrieved Matter . | . . . Parts Self-Destructed . | . . . Prevented . | . . . Kills | -11 -10 -10 ------- Run | Yrd Mat Min Combat Hostiles Destroyed 14 | . 9 5 Guns 13 | . 9 4 AOE 1 | . . 1 Classes Destroyed 5 | . 4 1 Tunneler 1 | . . 1 Hauler 1 | . 1 . Watcher 1 | . 1 . Swarmer 6 | . 3 3 Grunt 8 | . 6 2 Best Kill Streak 5 | . 5 3 Combat Bots Only 5 | . 5 3 Max Kills in Single Turn 1 | . 1 1 Gunslinging . | . . . Exploded 1 | . . 1 Melee . | . . . Uniques/NPCs Destroyed . | . . . Combat | -11 -10 -10 -------- Run | Yrd Mat Min Hostile Shots Fired 125 | . 63 62 Missed 35 | . 17 18 Damage Taken 1054 | . 509 545 Core 265 | . 112 153 Absorbed by Shields . | . . . Core Remaining (%) 100 | 100 . . Volleys Fired 102 | . 57 45 Largest 2 | . 2 1 Hottest 60 | . 60 33 Shots Fired 143 | . 98 45 Gun 141 | . 98 43 Cannon . | . . . Launcher 2 | . . 2 Special . | . . . Kinetic 100 | . 57 43 Thermal 41 | . 41 . Explosive 2 | . . 2 Electromagnetic . | . . . Robot Hit Streak 14 | . 9 14 Robot Miss Streak 3 | . 3 2 Penetration Max . | . . . Secondary Targets 2 | . 2 . Max Gunslinging Chain 1 | . 1 . Shots Hit Robots 103 | . 67 36 Core Hits 39 | . 25 14 Critical Kills . | . . . Critical Parts Destroyed . | . . . Critical Strikes . | . . . Melee Attacks . | . . . Impact . | . . . Slashing . | . . . Piercing . | . . . Sneak Attacks . | . . . Combat Hostiles . | . . . Follow-up Attacks . | . . . Damage Inflicted 1134 | . 679 455 Guns 956 | . 677 279 Cannons . | . . . Explosions 176 | . . 176 Melee . | . . . Ramming 2 | . 2 . Kinetic 612 | . 333 279 Thermal 344 | . 344 . Explosive 176 | . . 176 Electromagnetic . | . . . Impact . | . . . Slashing . | . . . Piercing . | . . . Highest Corruption . | . . . Average Corruption . | . . . Corruption Purged . | . . . Corruption Blocked . | . . . Overload Shots . | . . . Overflow Damage . | . . . Projectiles . | . . . Explosions . | . . . Melee . | . . . Knockbacks . | . . . Impact . | . . . Kinetic . | . . . Secondary . | . . . Self-Inflicted Damage 91 | . . 91 Shots 2 | . . 2 Rammed 2 | . 2 . Targets Rammed 2 | . 2 . Kicked . | . . . Crushed . | . . . Highest Temperature 126 | . 126 14 Average Temperature 38 | . 46 4 Received Heat Transfer 414 | . 234 180 Siege Activations . | . . . Robots Corrupted . | . . . Combat Hostiles . | . . . Parts Fried . | . . . Impact Corruptions . | . . . Robots Melted . | . . . Combat Hostiles . | . . . Parts Melted . | . . . Heat Transferred 775 | . 775 . Parts Sabotaged . | . . . Parts Stolen . | . . . Parts Stripped . | . . . Power Chain Reactions . | . . . Alert | -11 -10 -10 ------- Run | Yrd Mat Min Peak Influence 142 | . 142 105 Initial 45 | . . 45 Average 65 | . 55 96 Maximum Alert Level . | . . . Low Security (%) 100 | 100 100 100 Level 1 . | . . . Level 2 . | . . . Level 3 . | . . . Level 4 . | . . . Level 5 . | . . . High Security . | . . . Max Security . | . . . Squads Dispatched . | . . . Investigation . | . . . Extermination . | . . . Reinforcement . | . . . Assault . | . . . Garrison . | . . . Intercept . | . . . Searches Triggered . | . . . Construction Impeded . | . . . Haulers Reinforced . | . . . Active Scanning Responses . | . . . Cargo Convoy Interrupts . | . . . Stealth | -11 -10 -10 --------- Run | Yrd Mat Min Distress Signals . | . . . Communications Jammed . | . . . Distress Signals . | . . . Times Spotted 22 | . 14 8 Peak Tracking Total 4 | . 3 4 Tactical Retreats 2 | . 1 1 Traps | -11 -10 -10 ------- Run | Yrd Mat Min Traps Triggered . | . . . Indirectly . | . . . Trap Hack Attempts . | . . . Triggered . | . . . Disarmed . | . . . Reprogrammed . | . . . Reused . | . . . Traps Extracted . | . . . Installed . | . . . Triggered . | . . . Machines | -11 -10 -10 ---------- Run | Yrd Mat Min Machines Disabled . | . . . Max in Single Turn . | . . . Machines Repaired . | . . . Machines Dismantled . | . . . Machines Sabotaged . | . . . Overloaded Fab Kills . | . . . Hacking | -11 -10 -10 --------- Run | Yrd Mat Min Machines Accessed . | . . . Terminals . | . . . Fabricators . | . . . Repair Stations . | . . . Recycling Units . | . . . Scanalyzers . | . . . Garrison Access . | . . . Total Hacks . | . . . Successful . | . . . Failed . | . . . Catastrophic . | . . . Database Lockouts . | . . . Manual . | . . . Terminals . | . . . Fabricators . | . . . Repair Stations . | . . . Recycling Units . | . . . Scanalyzers . | . . . Garrison Access . | . . . Terminal Hacks . | . . . Fabricator Hacks . | . . . Repair Station Hacks . | . . . Recycling Unit Hacks . | . . . Scanalyzer . | . . . Garrison Access Hacks . | . . . Unauthorized Hacks . | . . . Terminals . | . . . Fabricators . | . . . Repair Stations . | . . . Recycling Units . | . . . Scanalyzers . | . . . Garrison Access . | . . . Data Cores Recovered . | . . . Used . | . . . Hacking Detections . | . . . Full Trace Events . | . . . Feedback Events . | . . . Feedback Blocked . | . . . Robot Schematics Acquired . | . . . Robots Built . | . . . Authchips . | . . . Time . | . . . Total Robot Build Rating . | . . . Part Schematics Acquired . | . . . Parts Built . | . . . Authchips . | . . . Time . | . . . Total Part Build Rating . | . . . Parts Repaired . | . . . Time . | . . . Parts Recycled . | . . . Recycled Matter . | . . . Retrieved Matter . | . . . Retrieved Components . | . . . Parts Scanalyzed . | . . . Part Schematics Acquired . | . . . Parts Damaged . | . . . Bothacking | -11 -10 -10 ------------ Run | Yrd Mat Min Used RIF Installer . | . . . Robots Hacked . | . . . Non-combat . | . . . Combat . | . . . Robot Hacks Applied . | . . . Relay Couplers Released . | . . . Fabnet Peak Effective % . | . . . Robots Rewired . | . . . Allies Hacked . | . . . Hacks Repelled . | . . . Allies | -11 -10 -10 -------- Run | Yrd Mat Min Total Allies . | . . . Largest Group . | . . . Highest-Rated Group . | . . . Highest-Rated Ally . | . . . Total Orders . | . . . Ally Attacks . | . . . Total Damage . | . . . Kills . | . . . Allies Corrupted . | . . . Allies Melted . | . . . Intel | -11 -10 -10 ------- Run | Yrd Mat Min Robot Analysis Total . | . . . Derelict Logs Recovered 1 | . . 1 Drone Launches . | . . . Drone Recoveries . | . . . Exploration | -11 -10 -10 ------------- Run | Yrd Mat Min Turns Passed 983 | 62 603 318 Spaces Moved 399 | 37 255 107 Core 10 | 6 . 4 Treads 286 | 31 255 . Legs . | . . . Wheels 47 | . . 47 Hover . | . . . Flight 56 | . . 56 Fastest Speed 50 | 50 160 110 Average Speed 178 | 147 170 208 Slowest Speed 450 | 160 320 450 Overloaded Moves . | . . . Propulsion Burnouts . | . . . Robots Hopped . | . . . Cave-ins Triggered . | . . . Exploration Rate (%) 30 | 3 50 39 Regions Visited 2 Branch Regions 1 Pre-discovered Areas 1 | . . 1 Known Exits Taken . | . . . Unknown Exits Taken 2 | 1 1 . Scrap Searched 1 | . . 1 Spaces Dug . | . . . Terrain Destroyed 15 | . . 15 Melee . | . . . Projectile . | . . . AOE 15 | . . 15 Terrain Rammed . | . . . Walls Destroyed . | . . . Machines Disabled . | . . . Actions | -11 -10 -10 --------- Run | Yrd Mat Min Total 541 | 42 333 166 Wait 6 | . 1 5 Move 397 | 36 254 107 Hop . | . . . Pick Up 12 | . 11 1 Fast Attach 10 | 6 1 3 Attach 3 | . . 3 Detach 1 | . . 1 Swap 5 | . 5 . Drop 3 | . 2 1 Fire 102 | . 57 45 Melee . | . . . Ram . | . . . Kick . | . . . Crush 2 | . 2 . Escape Stasis . | . . . Rewire . | . . . Trap . | . . . Miscellaneous . | . . . Route ------- -11/Scrapyard -10/Materials (discovered 3 exits: [*Mat x2] / [*Min]) -10/Mines (discovered 1 exit: [*Mat]) History --------- Turn | Location | Event 13 | -11/Scrapyard | Discovered new exit (range 15) 63 | -11/Scrapyard | Entered Materials 304 | -10/Materials | Build established: Mutant 426 | -10/Materials | Discovered new exit (range 16) 562 | -10/Materials | Discovered new exit (range 16) 629 | -10/Materials | Discovered new exit (range 10) 666 | -10/Materials | Entered Mines 673 | -10/Mines | Core integrity fell below 50% 707 | -10/Mines | Lost 4 parts (1p2n1w) 903 | -10/Mines | Found a hidden stash of uninstalled traps 918 | -10/Mines | Learned location of Zion (-7) 934 | -10/Mines | Discovered new exit (range 7) 972 | -10/Mines | Core integrity fell below 20% 984 | -10/Mines | Destroyed self with Rocket Launcher Last Messages --------------- 00775_ Found 36 Matter. 00776_ Acquired 36 matter. 00785_ K-01 Serf collects debris. 00869_ T-07 Excavator destroyed. 00871_ Acquired 28 matter. 00880_ Acquired Wheel. 00881_ Dropped Flight Unit. 00903_ A stash of uninstalled traps is collected here! 00918_ Acquired derelict log, extracted data. World map updated: -7/Zion. 00934_ EXIT=FOUND 00936_ Lgt. Assault Rifle destroyed. 00952_ Flight Unit destroyed. 00954_ Wheel destroyed. 00962_ Lgt. Nuclear Core destroyed. 00966_ G-34 Mercenary destroyed. 00980_ Lgt. Assault Rifle destroyed. 00983_ The unstable cave ceiling collapses. 00984_ G-47 Trooper destroyed. Map ----- +----------------------------------------------------+ | | | | | | | ?????????????????????????????????????????????????? | | ?????????????????????????????????????????????????? | | ?????????????????????????????????????????????????? | | ?????????????????????????????????????????????????? | | ?????????????????????????????????????????????????? | | ?????????????????????????????????????????????????? | | ?????????????????????????????????????????????????? | | ?????????????????????????????????????????????????? | | ?????????????????????????????????????????????????? | | ?????????????????????????????????????????????????? | | ?????????????????????????????????????????????????? | | ?????????????????????????????????????????????????? | | ?????????????????????????????????????????????????? | | ??????????????????????????????????#???##?????????? | | ????????????????????????????????? ### ## ???????? | | ???????????????????????????????? ????????? | | ???????????????????????????????# ""????????? | | ??????????????????????????????# ??????????? | | ????????????????????????#####? < #????????????? | | ????????????????????????# # #?????????????? | | ???????????????????????## #??????????????? | | ???????????????????????# %g%= #???????????????? | | ???????????????????????# @[ #???????????????? | | ???????????????????????# #### ##???????????????? | | ? ????????????????????# #??? #????????????????? | | ? ????????????????######g#???? ???????????????? | | ? #???????????????# #?????###??????????????? | | # #???????????????# ######??????????????????????? | | # #???????????????# #???????????????????????????? | | # #???????????????# #???????????????????????????? | | # #???????????????# #???????????????????????????? | | # #???????????????# #????????"" ??????????????? | | #???????????????# #????? ???????????????? | | ##????????????### #### #?????????????????? | | #????????????# #?????????????????? | | ?????????????# #??????????????? | | #?????????????# ##### ## #??????????????? | | ##????????????# #?????#####??????????????????? | | ######?????### #????????????????????????????? | | ! != #?##### ##???????????????????????????? | | #### #?# ##??????????????????????????? | | ##??# ### ## #??????????????????????????? | | #???# ## #??????????????????????????? | | # #???##### ### &#??????????????????????????? | | # #??????## #?### & #??????????????????????????? | | # ????? #???## &##??????????????????????????? | | ######??? ##???####???????????????????????????? | +----------------------------------------------------+ Best States ------------- Heat Dissipation 25 Energy Generation 14 Energy Capacity 250 Matter Stores 202 Matter Capacity 300 Sight Range 16 Terrain Scan Density 10 Evasion (%) 40 Targeting Accuracy 6 Recoil Reduction 2 Item Schematics ----------------- None Robot Schematics ------------------ None Fabricated ------------ Nothing Alien Tech Used ----------------- None Achievements -------------- None Challenges ------------ None Game ------ Seed CoilCombatMegatreads Manual? 0 Play Time 00:08:13 Cumulative 62.2 hours Start 2024.09.20 @ 23:32:55 End 2024.09.21 @ 20:46:10 Sessions 3 Manual Loads 0 Difficulty Rogue Special Mode None Game No. 132 Rogue 132 Adventurer 0 Explorer 0 Win Type - Total 0 Types 0/0/0/0/0/0/0/0/0 Lore% 17 Gallery% 36 Achievement% 28 Wizard Run 0 Options --------- Layout 1 ASCII 0 Keyboard 1 Movement Arrows Keybinds 0 Fullscreen 1 Font 24/Smallcaps Map View 50x35 Zoom Use 0% Tactical HUD 1 Map Filters NONE Filters NONE Steam 1 RUN: 68ca6690-90d3-49b9-b484-8bb6d7bc2003